bitfinex/quotes_SOLUSD_20240705
["timestamp","ask_amount","ask_price","bid_price","bid_amount"]
[1720143737460,107.8106,128.04,128.01,0.1]
[1720143738193,7.8107,128.03,128.01,0.1]
[1720143738368,7.8112,128.02,128.01,0.1]
[1720143738563,100.0,128.08,128.01,0.1]
[1720143738793,7.8083,128.07,128.01,0.1]
[1720143738975,100.0,128.08,128.01,0.1]
[1720143739191,100.0,128.06,128.01,0.1]
[1720143739362,7.8112,128.02,128.01,0.1]
[1720143739764,100.0,128.04,128.01,0.1]
[1720143740187,7.8112,128.02,128.01,0.1]
[1720143740388,107.8112,128.02,128.01,0.1]
[1720143740801,7.8112,128.02,128.01,0.1]
[1720143741483,7.8088,128.06,128.01,0.1]
[1720143741697,7.8107,128.03,128.01,0.1]
[1720143741876,7.8112,128.02,128.01,0.1]
[1720143742598,107.8118,128.01,128.0,0.8381635]
[1720143742782,107.8118,128.01,127.88,6.0998]
[1720143742783,100.0,127.98,127.88,6.0998]
[1720143743095,100.0,127.96,127.87,0.8381635]
[1720143743294,107.8173,127.92,127.87,0.8381635]
[1720143745307,107.8198,127.88,127.87,6.35e-05]
[1720143745908,100.0,127.85,127.81,0.1]
[1720143746088,7.8229,127.83,127.81,0.1]
[1720143746903,100.0,127.87,127.81,0.1]
[1720143747108,7.8198,127.89,127.81,0.1]
[1720143747889,7.8186,127.9,127.81,0.1]
[1720143748108,100.0,127.93,127.83,7.8223]
[1720143748290,7.8174,127.92,127.83,7.8223]
[1720143748489,7.8193,127.89,127.81,19.659]
[1720143748682,100.0,127.95,127.81,0.1]
[1720143748889,7.8158,127.95,127.86,7.8204]
[1720143749116,7.8149,127.96,127.85,6.2893]
[1720143749320,34.5309,128.01,127.85,6.2893]
[1720143749321,116.4261,128.02,127.86,0.17]
[1720143749611,100.0,128.02,127.92,27.3594]
[1720143749814,100.0,128.02,127.92,19.5422]
[1720143749996,7.8111,128.03,127.92,19.5422]
[1720143750202,100.0,128.06,127.94,19.539]
[1720143750714,7.8089,128.06,127.96,13.9834]
[1720143750918,100.0,128.1,127.99,7.813]
[1720143751215,100.0,128.1,127.97,7.8137]
[1720143751522,7.8063,128.11,128.0,7.8124]
[1720143751692,7.8065,128.1,128.0,7.8124]
[1720143751891,7.8072,128.09,127.99,27.3457]
[1720143752102,100.0,128.12,127.99,19.5327]
[1720143752307,100.0,128.17,128.0,0.17]
[1720143752526,100.0,128.15,127.99,38.95]
[1720143752698,8.16884068,128.17,128.0,0.17]
[1720143752899,8.16884068,128.17,128.06,7.8086]
[1720143752900,7.8033,128.15,128.06,7.8086]
[1720143753093,7.8033,128.15,128.05,7.8093]
[1720143753298,108.16884068,128.17,128.03,27.3354]
[1720143753508,7.8039,128.14,128.04,7.8097]
[1720143753718,7.8031,128.16,128.05,19.5222]
[1720143754019,100.0,128.15,128.04,6.0225]
[1720143754212,7.8049,128.13,128.04,13.8324]
[1720143754414,100.0,128.14,128.04,6.0225]
[1720143754793,7.8063,128.11,128.04,6.0225]
[1720143754993,100.0,128.14,128.04,6.0225]
[1720143755222,7.8058,128.11,128.04,6.0225]
[1720143755413,7.8076,128.08,128.04,6.0225]
[1720143755595,139.0229,128.13,128.04,6.0225]
[1720143755922,100.0,128.11,128.04,6.0225]
[1720143756126,100.0,128.08,127.98,6.421]
[1720143756297,100.0,128.12,127.98,6.421]
[1720143756298,100.0,128.06,127.98,6.421]
[1720143756504,7.8119,128.01,127.95,16.6117]
[1720143756892,7.8127,128.0,127.92,25.963]
[1720143757201,7.8127,128.0,127.92,6.421]
[1720143757395,7.8131,127.99,127.92,6.421]
[1720143757616,7.8151,127.96,127.92,6.421]
[1720143757801,7.8155,127.95,127.89,15.5093]
[1720143757996,7.8155,127.95,127.87,6.3875]
[1720143758203,7.8137,127.98,127.89,7.8189]
[1720143758414,7.8143,127.97,127.88,19.5484]
[1720143758722,100.0,127.99,127.88,19.5484]
[1720143759021,107.8135,127.99,127.9,7.8185]
[1720143759319,7.8137,127.98,127.88,19.5484]
[1720143759499,7.8149,127.96,127.88,19.5484]
[1720143759824,7.8142,127.98,127.88,27.3681]
[1720143760020,100.0,128.03,127.87,92.508]
[1720143760235,100.0,128.03,127.91,19.5439]
[1720143760398,7.8141,127.98,127.88,7.8193]
[1720143760598,100.0,127.99,127.87,396.4875]
[1720143760804,7.816,127.95,127.87,396.4875]
[1720143761106,7.813,128.0,127.9,7.8184]
[1720143761302,7.8133,127.99,127.9,7.8184]
[1720143761499,7.8143,127.97,127.88,7.8193]
[1720143761702,100.0,128.02,127.89,19.5471]
[1720143761925,7.8137,127.98,127.89,27.3662]
[1720143762128,100.0,128.0,127.89,19.5471]
[1720143762500,7.8126,128.0,127.91,7.8179]
[1720143762799,7.8142,127.98,127.89,7.8191]
[1720143763006,100.0,127.98,127.87,396.4875]
[1720143763219,100.0,127.96,127.87,396.4875]
[1720143763407,7.8161,127.95,127.87,6.3875]
[1720143763607,100.0,127.98,127.87,25.9381]
[1720143763829,7.8157,127.95,127.87,25.9381]
[1720143764121,107.8116,128.02,127.93,7.8164]
[1720143764307,100.0,128.02,127.91,19.5436]
[1720143764506,7.8125,128.0,127.91,19.5436]
[1720143764704,100.0,128.0,127.88,19.549]
[1720143765004,100.0,128.0,127.91,7.8179]
[1720143765005,7.8126,128.0,127.91,7.8179]
[1720143765209,100.0,128.0,127.88,19.549]
[1720143765713,7.8138,127.98,127.89,7.8186]
[1720143765913,100.0,127.98,127.87,396.4875]
[1720143766112,100.0,127.98,127.87,6.3875]
[1720143766318,100.0,127.94,127.87,6.3875]
[1720143766915,100.0,127.94,127.83,16.2933]
[1720143766916,100.0,127.92,127.83,16.2933]
[1720143767624,107.8198,127.88,127.82,6.4151]
[1720143767929,100.0,127.9,127.82,6.4151]
[1720143768128,100.0,127.94,127.83,7.8228]
[1720143768329,7.818,127.91,127.82,6.4151]
[1720143768506,7.8187,127.9,127.82,6.4151]
[1720143768710,7.8187,127.9,127.81,23.904384]
[1720143768927,7.8181,127.91,127.82,7.8234]
[1720143769230,100.0,127.93,127.78,55.20395848]
[1720143769429,7.8201,127.88,127.79,7.8248]
[1720143769732,7.8201,127.88,127.79,27.3874]
[1720143769907,100.0,127.91,127.79,19.5626]
[1720143770109,100.0,127.93,127.81,19.5595]
[1720143770308,7.8174,127.92,127.83,7.8222]
[1720143770611,100.0,127.93,127.81,19.5595]
[1720143770819,7.8181,127.91,127.82,7.8233]
[1720143771435,7.8186,127.9,127.82,7.8233]
[1720143771608,7.8186,127.9,127.81,27.3835]
[1720143772126,100.0,127.91,127.82,7.8234]
[1720143772311,7.8187,127.9,127.81,27.3834]
[1720143772642,107.8181,127.91,127.82,7.8233]
[1720143773014,7.8186,127.9,127.82,7.8233]
[1720143773207,119.539,127.95,127.8,6.1714]
[1720143773208,100.0,127.88,127.8,6.1714]
[1720143773431,7.8216,127.86,127.8,6.1714]
[1720143773810,100.0,127.88,127.8,6.1714]
[1720143773811,107.8202,127.88,127.8,6.1714]
[1720143774013,107.819,127.9,127.8,6.1714]
[1720143774212,58.4911,127.94,127.8,6.1714]
[1720143774213,100.0,127.88,127.8,6.1714]
[1720143774421,100.0,127.9,127.8,6.1714]
[1720143774623,107.8187,127.9,127.81,7.8239]
[1720143774835,7.8181,127.91,127.82,7.8233]
[1720143775206,7.819,127.9,127.8,33.5564]
[1720143775525,100.0,127.9,127.8,6.1714]
[1720143775735,100.0,127.88,127.8,6.1714]
[1720143776231,7.8223,127.84,127.8,6.1714]
[1720143776541,7.8217,127.85,127.8,6.1714]
[1720143776921,8.18446195,127.91,127.8,6.1714]
[1720143777233,7.8187,127.9,127.8,6.1714]
[1720143777416,7.8193,127.89,127.8,6.1714]
[1720143777611,7.8167,127.93,127.8,6.1714]
[1720143777828,7.8162,127.94,127.81,0.17]
[1720143778033,7.8156,127.95,127.88,16.5972]
[1720143778421,7.815,127.96,127.88,16.5972]
[1720143778627,7.8178,127.92,127.88,16.5972]
[1720143778832,100.0,127.95,127.83,24.4199]
[1720143779125,100.0,127.93,127.83,16.5972]
[1720143779445,100.0,127.95,127.83,16.5972]
[1720143779610,7.8168,127.93,127.84,7.822]
[1720143780228,7.8174,127.92,127.83,43.9765]
[1720143780757,7.8167,127.94,127.85,7.8212]
[1720143781058,108.1782383,127.99,127.9,7.8184]
[1720143781365,7.8144,127.97,127.89,27.3661]
[1720143781527,7.8144,127.97,127.83,63.6172]
[1720143781528,7.8156,127.95,127.86,19.5519]
[1720143781859,100.0,127.97,127.86,19.5519]
[1720143782028,7.8155,127.95,127.87,7.8202]
[1720143782560,8.17859829,127.99,127.85,86.1275]
[1720143782755,15.1,128.09,127.86,67.19]
[1720143782756,119.5256,128.04,127.86,67.19]
[1720143782962,100.0,128.04,127.86,457.29]
[1720143783144,7.8119,128.01,127.93,22.1634]
[1720143783336,7.8114,128.02,127.93,29.9798]
[1720143783930,7.8099,128.05,127.94,19.5393]
[1720143784156,100.0,128.08,127.94,19.5393]
[1720143784157,7.8089,128.06,127.97,7.8142]
[1720143784353,7.8082,128.07,127.98,7.8137]
[1720143784669,0.1,128.09,128.02,7.8111]
[1720143785362,7.907,128.09,128.0,27.3422]
[1720143785537,0.1,128.09,127.97,19.5352]
[1720143785738,7.8084,128.07,127.98,7.9832]
[1720143786150,7.8089,128.06,127.97,27.3494]
[1720143786436,7.8077,128.08,127.99,7.813]
[1720143786652,7.907,128.09,128.0,7.8123]
[1720143786852,0.1,128.09,127.97,19.5352]
[1720143787164,7.9074,128.09,128.0,7.8124]
[1720143787531,0.1,128.09,128.01,7.8117]
[1720143787734,7.907,128.09,128.01,7.8117]
[1720143787951,7.907,128.09,128.01,7.8118]
[1720143788163,0.1,128.09,128.01,19.5286]
[1720143788466,0.1,128.09,127.99,47.02]
[1720143788467,0.1,128.09,128.04,19.5247]
[1720143788765,0.1,128.09,128.01,19.5289]
[1720143788936,0.1,128.09,128.02,7.8107]
[1720143789136,0.1,128.09,128.03,7.8106]
[1720143789651,0.1,128.09,128.02,7.8111]
[1720143789858,0.1,128.09,128.0,390.1]
[1720143790277,7.8111,128.03,128.0,390.1]
[1720143790447,7.8111,128.03,127.93,22.1634]
[1720143790448,7.8114,128.02,127.93,29.98]
[1720143790758,119.5246,128.05,127.93,22.1634]
[1720143790959,7.812,128.01,127.93,22.1634]
[1720143791171,7.8095,128.05,127.96,7.8148]
[1720143791371,7.8078,128.08,127.98,19.5329]
[1720143791541,7.8083,128.07,127.98,27.3465]
[1720143791746,7.8101,128.04,127.96,7.8145]
[1720143791960,7.8096,128.05,127.96,7.8147]
[1720143792158,7.8082,128.07,127.98,7.8136]
[1720143792378,7.8076,128.08,127.99,7.8129]
[1720143792548,7.8083,128.07,127.97,27.3485]
[1720143792759,100.0,128.06,127.95,7.8154]
[1720143793074,100.0,128.06,127.94,27.3562]
[1720143793379,7.8107,128.03,127.94,27.3562]
[1720143793590,100.0,128.06,127.94,19.5402]
[1720143793760,100.0,128.08,127.96,19.5364]
[1720143794085,7.8083,128.07,127.98,7.8135]
[1720143794278,100.0,128.08,127.96,19.5364]
[1720143794572,100.0,128.06,127.94,7.8156]
[1720143794763,7.8112,128.03,127.94,7.8156]
[1720143794948,100.0,128.03,127.93,22.1634]
[1720143795156,100.0,128.03,127.91,390.1]
[1720143795157,7.8132,127.99,127.91,390.1]
[1720143795356,6.1266,128.05,127.89,7.8191]
[1720143795357,100.0,128.01,127.89,7.8191]
[1720143795550,100.0,127.99,127.88,6.0952]
[1720143795754,100.0,127.99,127.89,7.8187]
[1720143795755,7.8141,127.98,127.89,7.8187]
[1720143795949,7.8132,127.99,127.91,7.8179]
[1720143796170,7.8124,128.01,127.93,7.8167]
[1720143796375,100.0,128.03,127.94,7.8159]
[1720143796550,7.8125,128.0,127.92,7.8172]
[1720143796751,7.8125,128.0,127.88,6.0952]
[1720143796951,7.8144,127.97,127.9,19.5456]
[1720143797171,119.5302,128.01,127.88,6.0952]
[1720143797356,7.8129,128.0,127.91,7.8174]
[1720143797557,7.8132,127.99,127.9,7.8184]
[1720143797764,100.0,127.99,127.89,19.5473]
[1720143798077,6.1266,128.05,127.88,92.2114]
[1720143798252,7.8118,128.02,127.88,482.3114]
[1720143798581,100.0,128.02,127.91,19.5437]
[1720143798774,7.8135,127.99,127.91,19.5437]
[1720143799158,100.0,127.97,127.88,6.0952]
[1720143799376,7.8176,127.92,127.84,6.3067]
[1720143799677,7.8176,127.92,127.81,7.824]
[1720143799678,100.0,127.92,127.81,7.824]
[1720143799855,7.8193,127.89,127.8,417.4855]
[1720143800057,7.82,127.88,127.8,19.5613]
[1720143800284,100.0,127.9,127.78,29.1881]
[1720143800576,100.0,127.9,127.79,7.8253]
[1720143800778,7.8211,127.86,127.78,29.188]
[1720143801095,7.8211,127.86,127.77,27.3923]
[1720143801387,7.8205,127.87,127.78,7.8257]
[1720143801561,107.8199,127.88,127.79,7.8252]
[1720143801969,100.0,127.88,127.77,27.392]
[1720143802181,100.0,127.88,127.75,7.8273]
[1720143802182,7.8227,127.84,127.75,7.8273]
[1720143802363,100.0,127.86,127.74,7.3026635]
[1720143802682,7.8217,127.85,127.76,7.827]
[1720143802881,100.0,127.88,127.77,19.5654]
[1720143803064,100.0,127.86,127.74,26.8730635]
[1720143803455,7.8229,127.83,127.75,7.8277]
[1720143803678,7.8229,127.83,127.74,20.4085635]
[1720143803883,100.0,127.82,127.74,0.8381635]
[1720143804056,106.5107,127.85,127.74,0.8381635]
[1720143804057,6.5107,127.85,127.76,7.8269]
[1720143804260,106.5107,127.85,127.74,0.8381635]
[1720143804464,114.3324,127.85,127.76,7.8271]
[1720143804668,114.3324,127.85,127.76,7.827]
[1720143804893,7.8217,127.85,127.76,7.827]
[1720143805094,145.0453,127.89,127.74,0.8381635]
[1720143805291,106.0953,127.89,127.79,7.825]
[1720143805601,7.8202,127.88,127.79,7.825]
[1720143805771,100.0,127.87,127.77,19.5655]
[1720143806094,100.0,127.85,127.74,20.4086635]
[1720143806391,7.8229,127.83,127.75,7.8277]
[1720143806598,7.8223,127.84,127.75,7.8277]
[1720143806903,7.8217,127.85,127.76,7.8269]
[1720143807092,7.8205,127.87,127.79,7.8252]
[1720143807405,7.8194,127.89,127.8,27.3855]
[1720143807770,7.8186,127.9,127.82,7.8232]
[1720143808078,100.0,127.93,127.82,27.3811]
[1720143808385,100.0,127.91,127.8,7.8246]
[1720143808878,7.8199,127.88,127.79,33.8637]
[1720143809398,7.8193,127.89,127.8,7.8246]
[1720143809569,7.8193,127.89,127.79,26.0385]
[1720143809570,7.8174,127.92,127.84,7.822]
[1720143809771,100.0,127.97,127.83,19.5565]
[1720143809974,7.8156,127.95,127.85,19.5534]
[1720143810181,7.8149,127.96,127.87,7.8199]
[1720143810507,7.8144,127.97,127.88,7.8196]
[1720143810683,7.8144,127.97,127.89,7.8187]
[1720143810992,7.8151,127.96,127.87,27.3698]
[1720143811201,7.8125,128.0,127.91,27.362]
[1720143811379,108.17668283,128.01,127.89,6.5778]
[1720143811570,108.17668283,128.01,127.89,14.3969]
[1720143812198,100.0,127.93,127.8,15.9865]
[1720143812403,7.82,127.88,127.8,15.9865]
[1720143812601,100.0,127.89,127.8,15.9865]
[1720143812804,100.0,127.91,127.74,0.8381635]
[1720143813101,7.8277,127.75,127.74,0.8381635]
[1720143813476,65.0862,127.78,127.74,0.8381635]
[1720143813477,45.5202,127.78,127.74,0.8381635]
[1720143813705,100.0,127.76,127.74,0.8381635]
[1720143813879,7.8277,127.75,127.74,0.8381635]
[1720143816004,45.5202,127.78,127.74,0.8381635]
[1720143816005,153.3467,127.78,127.74,0.8381635]
[1720143816224,7.8277,127.75,127.74,0.8381635]
[1720143816712,100.0,127.77,127.71,0.1]
[1720143816713,107.8296,127.72,127.71,0.1]
[1720143817379,100.0,127.7,127.64,0.04642296]
[1720143817602,7.832,127.69,127.64,0.04642296]
[1720143817803,100.0,127.7,127.64,0.04642296]
[1720143818000,100.0,127.72,127.64,0.04642296]
[1720143818197,7.8326,127.68,127.64,0.04642296]
[1720143818509,7.8324,127.68,127.64,0.04642296]
[1720143818802,7.8313,127.7,127.64,0.04642296]
[1720143819103,46.7784,127.74,127.64,7.88052296]
[1720143819287,7.8284,127.74,127.65,7.8333]
[1720143819818,100.0,127.74,127.64,0.04642296]
[1720143820017,100.0,127.72,127.64,0.04642296]
[1720143820506,7.8324,127.68,127.64,0.04642296]
[1720143820707,100.0,127.72,127.64,0.04642296]
[1720143821091,7.8308,127.7,127.64,0.04642296]
[1720143821301,7.8314,127.69,127.64,0.04642296]
[1720143821489,7.8327,127.67,127.64,0.04642296]
[1720143821687,100.0,127.7,127.64,0.04642296]
[1720143821894,7.8321,127.68,127.64,0.04642296]
[1720143822111,7.8302,127.71,127.64,0.04642296]
[1720143822703,7.8295,127.73,127.64,0.04642296]
[1720143823015,7.8296,127.72,127.64,7.88072296]
[1720143823192,7.8296,127.72,127.64,0.04642296]
[1720143825583,26.1355,127.78,127.64,0.04642296]
[1720143825584,100.0,127.76,127.65,7.8337]
[1720143825790,126.1355,127.78,127.65,7.8337]
[1720143826097,7.8301,127.72,127.64,0.04642296]
[1720143826408,100.0,127.74,127.64,0.04642296]
[1720143826813,100.0,127.72,127.64,0.04642296]
[1720143827021,7.8316,127.69,127.64,0.04642296]
[1720143827191,119.5748,127.72,127.64,0.04642296]
[1720143827389,7.8316,127.69,127.64,0.04642296]
[1720143827916,7.8331,127.67,127.64,0.04642296]
[1720143828117,100.0,127.7,127.64,0.04642296]
[1720143828118,7.8333,127.66,127.64,0.04642296]
[1720143828711,7.8339,127.65,127.64,0.04642296]
[1720143829010,7.8334,127.66,127.64,0.04642296]
[1720143829416,7.832,127.69,127.64,0.04642296]
[1720143829714,7.8333,127.66,127.64,0.04642296]
[1720143830100,100.0,127.7,127.64,0.04642296]
[1720143830897,7.8325,127.68,127.64,0.04642296]
[1720143831204,7.8309,127.7,127.64,0.04642296]
[1720143831401,7.8303,127.71,127.64,0.04642296]
[1720143831786,7.8304,127.71,127.64,0.04642296]
[1720143831988,100.0,127.72,127.64,0.04642296]
[1720143832207,7.8314,127.69,127.64,0.04642296]
[1720143833920,100.0,127.72,127.64,0.04642296]
[1720143834094,7.8303,127.71,127.64,0.04642296]
[1720143834293,7.829,127.73,127.64,0.04642296]
[1720143834490,7.829,127.74,127.66,7.8331]
[1720143834703,7.8287,127.74,127.65,26.2245]
[1720143834913,7.829,127.73,127.65,26.2245]
[1720143835120,100.0,127.75,127.65,26.2245]
[1720143835284,7.8303,127.71,127.65,6.6405]
[1720143835485,100.0,127.73,127.65,6.6405]
[1720143835486,7.8297,127.72,127.65,6.6405]
[1720143835912,7.8303,127.71,127.65,6.6405]
[1720143836119,7.8295,127.73,127.65,6.6405]
[1720143836418,7.8302,127.71,127.65,6.6405]
[1720143836990,7.8308,127.7,127.65,6.6405]
[1720143837295,7.8314,127.69,127.65,6.6405]
[1720143837490,8.18165612,127.73,127.65,6.6405]
[1720143837802,7.8273,127.76,127.67,7.8326]
[1720143838002,7.8278,127.75,127.67,7.8326]
[1720143838209,7.8278,127.75,127.66,27.4157]
[1720143838509,7.8286,127.74,127.66,19.5826]
[1720143839114,7.829,127.73,127.65,6.6405]
[1720143839306,7.8283,127.75,127.66,7.833]
[1720143839514,7.8283,127.75,127.67,7.8326]
[1720143840101,7.8272,127.76,127.67,7.8326]
[1720143840306,8.17897379,127.79,127.66,0.17]
[1720143840605,7.8258,127.79,127.71,7.83]
[1720143841091,7.8308,127.7,127.65,6.6405]
[1720143841293,7.8309,127.7,127.65,6.6405]
[1720143841489,7.8307,127.71,127.65,6.6405]
[1720143841713,7.8297,127.72,127.65,6.6405]
[1720143841999,7.828,127.75,127.66,7.8328]
[1720143842300,7.8313,127.7,127.65,6.6405]
[1720143842604,7.8295,127.73,127.65,6.6405]
[1720143843008,7.8295,127.73,127.65,14.4743]
[1720143843216,119.5626,127.8,127.68,7.8315]
[1720143843514,7.8273,127.76,127.68,7.8315]
[1720143843827,7.8272,127.76,127.67,27.4128]
[1720143844136,7.8266,127.77,127.67,19.5803]
[1720143844420,108.1766032,127.82,127.71,7.8301]
[1720143844619,7.8257,127.79,127.71,7.8301]
[1720143844913,7.8248,127.8,127.71,7.8301]
[1720143845114,100.0,127.8,127.69,19.5779]
[1720143845325,100.0,127.8,127.65,396.7405]
[1720143845513,100.0,127.8,127.66,0.17]
[1720143845700,7.826,127.78,127.67,19.5812]
[1720143845894,7.826,127.78,127.69,7.8312]
[1720143846202,100.0,127.78,127.67,19.5812]
[1720143846525,7.8278,127.75,127.67,19.5812]
[1720143846698,100.0,127.76,127.65,396.7405]
[1720143846900,38.95,127.8,127.65,6.6405]
[1720143846901,7.8314,127.69,127.65,6.6405]
[1720143847222,7.8309,127.7,127.64,16.21482296]
[1720143847529,7.831,127.7,127.64,16.21482296]
[1720143847834,7.8303,127.71,127.64,16.21482296]
[1720143848001,7.8292,127.73,127.64,24.04902296]
[1720143848197,7.8302,127.71,127.64,16.21482296]
[1720143848421,100.0,127.72,127.64,16.21482296]
[1720143848922,7.8304,127.71,127.64,16.21482296]
[1720143849807,119.5649,127.78,127.64,35.80002296]
[1720143850145,7.8322,127.68,127.64,16.21482296]
[1720143850323,100.0,127.73,127.64,16.21482296]
[1720143850699,7.8303,127.71,127.64,16.21482296]
[1720143851313,100.0,127.69,127.64,0.04642296]
[1720143851496,100.0,127.67,127.64,0.04642296]
[1720143851704,7.8339,127.65,127.64,0.04642296]
[1720143851905,100.0,127.69,127.64,0.04642296]
[1720143852125,7.8328,127.67,127.64,0.04642296]
[1720143852433,100.0,127.68,127.64,0.04642296]
[1720143852924,7.8322,127.68,127.64,0.04642296]
[1720143853303,138.95,127.74,127.64,0.04642296]
[1720143853495,100.0,127.74,127.64,0.04642296]
[1720143853696,7.8303,127.71,127.64,0.04642296]
[1720143853900,100.0,127.71,127.64,0.04642296]
[1720143854216,100.0,127.69,127.64,0.04642296]
[1720143854405,7.8327,127.67,127.64,0.04642296]
[1720143854719,7.8316,127.69,127.64,0.04642296]
[1720143854941,138.95,127.73,127.64,0.04642296]
[1720143854942,7.8303,127.71,127.64,0.04642296]
[1720143855524,7.8309,127.7,127.64,0.04642296]
[1720143855720,7.8318,127.69,127.64,0.04642296]
[1720143855918,119.576,127.71,127.64,0.04642296]
[1720143856130,7.8327,127.67,127.64,0.04642296]
[1720143856344,7.8314,127.7,127.64,0.04642296]
[1720143857240,100.0,127.71,127.64,0.04642296]
[1720143857454,7.8334,127.66,127.64,0.04642296]
[1720143858016,119.5807,127.68,127.64,0.04642296]
[1720143858314,7.8339,127.65,127.64,0.04642296]
[1720143858737,15.4579297,127.65,127.64,0.04642296]
[1720143859109,115.4579297,127.65,127.64,0.04642296]
[1720143859332,160.45198187,127.65,127.64,0.04642296]
[1720143859844,160.45380101,127.65,127.64,0.04642296]
[1720143860234,60.45380101,127.65,127.64,0.04642296]
[1720143860751,160.45380101,127.65,127.64,2.296e-05]
[1720143861648,15.45380101,127.65,127.64,2.296e-05]
[1720143861816,115.45380101,127.65,127.64,2.296e-05]
[1720143862018,152.8339,127.65,127.64,2.296e-05]
[1720143862440,127.4251,127.62,127.61,6.35e-05]
[1720143862753,172.4251,127.62,127.61,6.35e-05]
[1720143862926,211.3751,127.62,127.61,6.35e-05]
[1720143863328,218.98585686,127.62,127.61,6.35e-05]
[1720143863534,211.3751,127.62,127.61,6.35e-05]
[1720143863738,100.0,127.56,127.51,0.1]
[1720143863937,7.8402,127.55,127.51,0.1]
[1720143864116,100.0,127.6,127.51,0.1]
[1720143864312,100.0,127.58,127.51,0.1]
[1720143864727,100.0,127.64,127.51,0.1]
[1720143864940,7.8362,127.62,127.53,7.8406]
[1720143865147,7.8365,127.61,127.53,7.8406]
[1720143865373,7.8365,127.61,127.52,27.4464]
[1720143865656,7.8403,127.55,127.51,0.1]
[1720143865864,100.0,127.56,127.51,0.1]
[1720143866239,7.8405,127.55,127.51,0.1]
[1720143866729,100.0,127.56,127.51,0.1]
[1720143866936,7.8419,127.52,127.51,0.1]
[1720143867758,100.0,127.55,127.51,0.1]
[1720143867945,7.8407,127.54,127.51,0.1]
[1720143868139,7.8413,127.53,127.51,0.1]
[1720143868337,8.18204097,127.56,127.51,0.1]
[1720143868538,7.8389,127.57,127.51,0.1]
[1720143868865,19.5913,127.61,127.53,14.4904]
[1720143868866,100.0,127.61,127.53,14.4904]
[1720143869032,7.8363,127.62,127.53,14.4904]
[1720143869439,107.8351,127.63,127.54,7.8406]
[1720143869642,100.0,127.65,127.53,26.2515]
[1720143869979,7.834,127.65,127.56,7.8393]
[1720143870267,100.0,127.65,127.55,19.5995]
[1720143870572,7.8359,127.62,127.53,14.4903]
[1720143871070,7.8377,127.59,127.53,6.6492]
[1720143871363,100.0,127.61,127.53,6.6492]
[1720143871743,7.8364,127.61,127.53,6.6492]
[1720143871968,7.8357,127.63,127.55,7.84]
[1720143872157,7.8346,127.64,127.55,7.84]
[1720143872674,7.8336,127.66,127.55,19.5987]
[1720143872973,7.8321,127.68,127.6,7.8369]
[1720143873175,7.8321,127.68,127.58,19.5947]
[1720143873345,7.8328,127.67,127.58,27.4327]
[1720143873552,7.8322,127.68,127.58,27.4327]
[1720143873753,7.8315,127.69,127.6,7.8368]
[1720143873952,100.0,127.72,127.56,0.17]
[1720143874148,7.8309,127.7,127.62,19.5886]
[1720143874355,100.0,127.7,127.59,19.5936]
[1720143874572,8.17606917,127.72,127.59,19.5936]
[1720143874781,7.831,127.7,127.62,7.8356]
[1720143874968,7.8314,127.69,127.6,7.8369]
[1720143875169,7.8321,127.68,127.59,27.4311]